[Event "GER-chT States Women 2022"]
[Site "Braunfels"]
[Date "2022.06.16"]
[Round "1.1"]
[White "Hund, Sarah"]
[Black "Cosma, Elena-Luminita"]
[Result "0-1"]
[ECO "C13"]
[WhiteElo "2086"]
[BlackElo "2277"]
[Annotator "NA RC"]
[PlyCount "72"]
[EventDate "2022.06.15"]
[EventType "swiss"]
[EventCountry "GER"]
[SourceTitle "playchess.com"]
[Source "ChessBase"]
[SourceQuality "1"]
[TimeControl "40/5400+30:1800+30"]

1. e4 {[%emt 0:00:03]} e6 {[%emt 0:00:05]} 2. d4 {[%emt 0:00:10]} d5 {[%emt 0:00:05]} 3. Nc3 {[%emt 0:00:13]} Nf6 {[%emt 0:00:05]} 4. Bg5 {[%emt 0:00:22]} Be7 {[%emt 0:00:09]} 5. e5 {[%emt 0:00:35]} Nfd7 {[%emt 0:00:09]} 6. h4 {[%emt 0:00:33]} h6 {[%emt 0:00:09]} 7. Be3 {[%emt 0:01:21]} c5 {[%emt 0:00:24]} 8. Qg4 {[%emt 0:03:50]} g6 {[%emt 0:02:35]} 9. O-O-O {[%emt 0:03:04]} cxd4 {[%emt 0:02:20]} 10. Bxd4 {[%emt 0:00:34]} Nc6 {[%emt 0:00:48]} 11. Nf3 {[%emt 0:03:12]} Nxd4 {[%emt 0:09:45]} 12. Rxd4 {[%emt 0:02:36]} a6 {[%emt 0:10:52]} 13. Bd3 {[%emt 0:18:56]} Nf8 {[%emt 0:16:33]} 14. Rd1 {[%emt 0:12:19]} Bd7 {[%emt 0:04:11]} 15. h5 {[%emt 0:05:36]} g5 {[%emt 0:01:10]} 16. Qg3 {[%emt 0:03:07]} Qb6 {[%emt 0:05:54]} 17. Be2 {[%emt 0:07:12]} Bc5 {[%emt 0:10:19]} 18. Rxd5 {[%emt 0:06:41]} Bxf2 {[%emt 0:02:40]} 19. Qh2 {[%emt 0:00:32]} Bc6 {[%emt 0:18:54]} 20. Rd6 {[%emt 0:05:34]} Nd7 {[%emt 0:04:11]} 21. Nd4 {[%emt 0:02:15]} Bxd4 {[%emt 0:01:13]} 22. R1xd4 {[%emt 0:00:33]} Qa5 {[%emt 0:02:01]} 23. Bc4 {[%emt 0:11:23]} Qxe5 {[%emt 0:02:09]} 24. Qh3 {[%emt 0:03:07]} O-O {[%emt 0:01:18]} 25. Rxd7 {[%emt 0:01:04]} Bxd7 {[%emt 0:00:06]} 26. Rxd7 {[%emt 0:00:06]} Qf4+ {[%emt 0:00:07]} 27. Rd2 {[%emt 0:02:48]} Qxc4 {[%emt 0:00:07]} 28. Rf2 {[%emt 0:01:05]} Rad8 {[%emt 0:01:15]} 29. Qe3 {[%emt 0:00:52]} Qd4 {[%emt 0:00:54]} 30. Qe1 {[%emt 0:01:21]} Kg7 {[%emt 0:00:30]} 31. Ne4 {[%emt 0:01:04]} f5 {[%emt 0:00:25]} 32. Nc3 {[%emt 0:00:31]} e5 {[%emt 0:01:29]} 33. g4 {[%emt 0:00:55]} fxg4 {[%emt 0:00:48]} 34. Re2 {[%emt 0:00:23]} Qf4+ {[%emt 0:00:08]} 35. Kb1 {[%emt 0:00:36]} Qf1 {[%emt 0:00:06]} 36. Rxe5 {[%emt 0:00:19]} g3 {[%emt 0:00:42]} 0-1

[Event "GER-chT States Women 2022"]
[Site "Braunfels"]
[Date "2022.06.16"]
[Round "1.2"]
[White "Voicu-Jagodzinsky, Carmen"]
[Black "Kuehnel, Lena"]
[Result "1-0"]
[ECO "C54"]
[WhiteElo "2291"]
[BlackElo "1928"]
[Annotator "TA"]
[PlyCount "111"]
[EventDate "2022.06.15"]
[EventType "swiss"]
[EventCountry "GER"]
[SourceTitle "playchess.com"]
[Source "ChessBase"]
[SourceQuality "1"]
[TimeControl "40/5400+30:1800+30"]

{[%evp 17,111,0,0,0,2,0,2,0,2,7,59,50,68,64,68,64,85,85,67,60,109,107,101,68,71,79,56,62,203,210,220,204,223,215,226,70,62,45,68,0,0,0,0,0,0,0,0,0,49,21,24,-32,84,57,75,76,75,82,154,76,76,76,76,76,76,76,76,60,51,59,84,35,117,117,168,167,190,182,246,246,233,231,366,366,628,616,737,720,704,704,651,638,704,677,614,593]} 1. e4 {[%emt 0:00:02]} e5 {[%emt 0:00:08]} 2. Nf3 {[%emt 0:00:07]} Nc6 {[%emt 0:00:07]} 3. Bc4 {[%emt 0:00:59]} Bc5 {[%emt 0:00:26]} 4. c3 {[%emt 0:00:21]} Nf6 {[%emt 0:00:40]} 5. d3 {[%emt 0:00:07]} d6 {[%emt 0:00:41]} 6. h3 {[%emt 0:00:09]} a6 {[%emt 0:00:44]} 7. Bb3 {[%emt 0:00:07]} Ba7 {[%emt 0:01:09]} 8. Nbd2 {[%emt 0:00:22]} O-O {[%emt 0:01:08]} 9. Nf1 {[%emt 0:00:26]} d5 {[%emt 0:03:09]} 10. Qe2 {[%emt 0:00:12] C54: Giuoco Piano: 4 c3 Nf6, main lines with 5 d4 and 5 d3.} Re8 {[%emt 0:10:25]} 11. Bg5 {[%emt 0:02:04]} d4 {[%emt 0:06:04] [#]} 12. Ng3 $146 {[%emt 0:07:06] With the idea Nh5. The position is equal.} ({Predecessor:} 12. N1d2 Be6 13. O-O h6 14. Bxe6 hxg5 15. Bg4 Nxg4 16. hxg4 dxc3 17. bxc3 Qd7 18. Rfb1 {1-0 (81) Yemelin,V (2576)-Ris,R (2422) Rijeka 2010}) 12... h6 {[%emt 0:03:33]} 13. Bd2 {[%emt 0:01:58]} Na5 {[%emt 0:05:14]} (13... Be6 $11) 14. Ba4 $1 $14 {[%emt 0:04:28]} c6 {[%emt 0:12:22]} 15. b4 {[%emt 0:06:51]} b5 {[%emt 0:02:04]} 16. Bc2 {[%emt 0:00:16]} (16. bxa5 bxa4 17. O-O c5 $11) 16... Nb7 {[%emt 0:00:54]} 17. a4 {[%emt 0:02:38][%cal Ba2a4,Ba4b5,Bb5a6,Ba6a7][%mdl 32]} c5 {[%emt 0:07:01]} 18. axb5 {[%emt 0:02:04]} dxc3 {[%emt 0:13:41]} (18... cxb4 $14 {was preferrable.} 19. cxd4 (19. cxb4 axb5 20. O-O Nd6 $14) 19... exd4) 19. Bxc3 $16 {[%emt 0:00:21]} cxb4 {[%emt 0:00:31]} 20. Bb2 {[%emt 0:05:34]} (20. Bxb4 axb5 21. O-O Bd7 $14) 20... Bd4 {[%emt 0:08:20]} 21. Nxd4 {[%emt 0:01:34]} exd4 {[%emt 0:00:05]} 22. Rxa6 {[%emt 0:02:54]} Rxa6 {[%emt 0:02:37]} (22... Rb8 $1 $14) 23. bxa6 $18 {[%emt 0:00:04]} Nc5 {[%emt 0:01:16]} 24. a7 {[%emt 0:01:02]} Ba6 {[%emt 0:03:16][%cal Of6e4] Threatens to win with ...Nfxe4!} 25. O-O {[%emt 0:03:55] Hoping for Ra1.} b3 {[%emt 0:04:54]} 26. Bb1 {[%emt 0:03:05]} (26. Ba3 $18 Ncxe4 27. Nxe4 Rxe4 28. Qd2) 26... Ncxe4 $14 {[%emt 0:01:46]} 27. Nxe4 {[%emt 0:00:46]} Nxe4 {[%emt 0:03:42]} 28. Qg4 {[%emt 0:03:30] Inhibits Ng3.} (28. Qd1 $1 $14 Nc3 29. Bxc3 (29. Qxb3 Ne2+ 30. Kh1 Qa8 $11) 29... dxc3 30. Qxb3) 28... Nc3 $11 {[%emt 0:00:43]} 29. Bxc3 {[%emt 0:10:38]} dxc3 {[%emt 0:00:01]} 30. Qa4 {[%emt 0:00:21][%csl LRa6,LRb3]} Bb7 {[%emt 0:04:55]} ({Resist} 30... Re6 31. Qxb3 Qa8 32. Qxc3 (32. Qb8+ Re8 $16) 32... Qxa7 33. d4 $1 $16) 31. Qxb3 {[%emt 0:01:09]} Qa8 {[%emt 0:00:01][%csl LRa7,LRg2]} 32. Ba2 $36 {[%emt 0:22:16][%mdl 2048] Ra1 is the strong threat. White fights for an advantage.} ({Don't play} 32. Qxc3 Bxg2 33. Re1 Rxe1+ 34. Qxe1 Bxh3 $17) 32... Re7 {[%emt 0:00:08]} (32... Bxg2 $11 33. Qxf7+ Kh8) 33. Qa3 {[%emt 0:04:56]} Rd7 {[%emt 0:00:11]} 34. Qxc3 {[%emt 0:12:35]} (34. f3 $1 $11) 34... Qxa7 (34... Bxg2 $15 {stays ahead.} 35. Rc1 Rxa7 36. Qc8+ Kh7 37. Qxa8 Bxa8) 35. Bc4 {[%emt 0:00:31]} Qb6 {[%emt 0:01:57]} 36. Qe5 {[%emt 0:00:42] And now Qe8+ would win.} Qd8 {[%emt 0:02:51] Prevents Qe8+.} 37. Re1 {[%emt 0:00:11]} Kf8 {[%emt 0:00:31]} (37... Bd5 $142) 38. Qf5 {[%emt 0:01:04] 0x0.001762f2c08adp-1022s more active pieces.} ({Better is} 38. Bb5 Re7 39. Qc5) 38... Qg5 $16 {[%emt 0:00:51]} 39. Qxg5 {[%emt 0:00:20]} hxg5 {[%emt 0:00:01][%mdl 4096] Endgame KRB-KRB} 40. f3 {[%emt 0:00:43]} f6 {[%emt 0:00:40]} 41. Kf2 {[%emt 0:30:09]} Bd5 {[%emt 0:01:54]} 42. Re2 {[%emt 0:00:00]} Bxc4 {[%emt 0:02:42]} 43. dxc4 $14 {[%emt 0:00:00] KR-KR} Rd4 {[%emt 0:01:31] [#]} 44. Rc2 {[%emt 0:00:00]} (44. Re4 $1 $16 {[%cal Re4d4]} Rd2+ 45. Re2) 44... Ke7 {[%emt 0:00:58] [#]} (44... Rd3 $1 $14) 45. Ke3 $1 $16 {[%emt 0:00:00]} Rh4 {[%emt 0:01:14]} (45... Rd1 $16 {might work better.} 46. Ra2 Rg1) 46. Kd3 {[%emt 0:00:00]} Kd6 {[%emt 0:00:52]} 47. Ra2 {[%emt 0:00:00]} Kc5 {[%emt 0:00:40]} (47... Rh8 $142 48. Ra6+ Kc5) 48. Ra5+ $18 {[%emt 0:00:00]} Kb6 {[%emt 0:00:38]} 49. Ra8 {[%emt 0:00:00]} f5 {[%emt 0:03:20]} (49... Kc5 {is a better defense.} 50. Rc8+ Kd6) 50. Rf8 {[%emt 0:00:00]} Rf4 {[%emt 0:02:17]} (50... g4 51. hxg4 (51. Rxf5 gxh3 52. gxh3 Rxh3 $16) 51... fxg4) 51. Rf7 {[%emt 0:00:00] White is clearly winning.} g6 {[%emt 0:00:44]} 52. Rf6+ {[%emt 0:00:00]} Kc5 {[%emt 0:00:06]} 53. Rxg6 {[%emt 0:00:00]} Rd4+ {[%emt 0:00:09]} 54. Ke2 {[%emt 0:00:00]} Kxc4 {[%emt 0:00:28]} 55. Rxg5 {[%emt 0:00:00]} f4 {[%emt 0:00:21]} 56. h4 {[%emt 0:00:00] Weighted Error Value: White=0.14 (very precise) /Black=0.32} 1-0

[Event "GER-chT States Women 2022"]
[Site "Braunfels"]
[Date "2022.06.16"]
[Round "1.3"]
[White "Kohm, Vanessa"]
[Black "Agrest, Inna"]
[Result "0-1"]
[ECO "E70"]
[WhiteElo "1772"]
[BlackElo "2265"]
[Annotator "NA RC"]
[PlyCount "42"]
[EventDate "2022.06.15"]
[EventType "swiss"]
[EventCountry "GER"]
[SourceTitle "playchess.com"]
[Source "ChessBase"]
[SourceQuality "1"]
[TimeControl "40/5400+30:1800+30"]

1. d4 {[%emt 0:00:03]} Nf6 {[%emt 0:00:05]} 2. c4 {[%emt 0:00:12]} g6 {[%emt 0:00:05]} 3. Nc3 {[%emt 0:00:09]} Bg7 {[%emt 0:00:06]} 4. e4 {[%emt 0:00:15]} d6 {[%emt 0:00:05]} 5. Bg5 {[%emt 0:00:36]} O-O {[%emt 0:00:13]} 6. Qd2 {[%emt 0:00:21]} Nbd7 {[%emt 0:01:02]} 7. f3 {[%emt 0:00:48]} a6 {[%emt 0:00:30]} 8. Bh6 {[%emt 0:01:25]} e5 {[%emt 0:04:17]} 9. d5 {[%emt 0:00:36]} Nxe4 {[%emt 0:05:00]} 10. fxe4 {[%emt 0:08:52]} Qh4+ {[%emt 0:00:24]} 11. g3 {[%emt 0:00:50]} Qxh6 {[%emt 0:00:09]} 12. O-O-O {[%emt 0:03:41]} Qxd2+ {[%emt 0:03:46]} 13. Kxd2 {[%emt 0:00:09]} f5 {[%emt 0:00:22]} 14. Nge2 {[%emt 0:04:55]} Nf6 {[%emt 0:01:54]} 15. Bg2 {[%emt 0:04:46]} Bh6+ {[%emt 0:06:28]} 16. Kd3 {[%emt 0:14:06]} Ng4 {[%emt 0:06:05]} 17. Rdf1 {[%emt 0:04:03]} Ne3 {[%emt 0:01:21]} 18. Rfg1 {[%emt 0:02:35]} Nxg2 {[%emt 0:06:38]} 19. Rxg2 {[%emt 0:00:36]} fxe4+ {[%emt 0:00:11]} 20. Nxe4 {[%emt 0:00:23]} Rf3+ {[%emt 0:00:41]} 21. Kc2 {[%emt 0:00:17]} Bf5 {[%emt 0:00:11]} 0-1

[Event "GER-chT States Women 2022"]
[Site "Braunfels"]
[Date "2022.06.16"]
[Round "1.4"]
[White "Ciolacu, Alessia-Mihaela"]
[Black "Grining, Maria"]
[Result "1-0"]
[ECO "D11"]
[WhiteElo "2198"]
[BlackElo "1759"]
[Annotator "NA RC"]
[PlyCount "67"]
[EventDate "2022.06.15"]
[EventType "swiss"]
[EventCountry "GER"]
[SourceTitle "playchess.com"]
[Source "ChessBase"]
[SourceQuality "1"]
[TimeControl "40/5400+30:1800+30"]

1. d4 {[%emt 0:00:03]} d5 {[%emt 0:00:11]} 2. c4 {[%emt 0:00:09]} c6 {[%emt 0:00:10]} 3. Nf3 {[%emt 0:00:07]} Nf6 {[%emt 0:00:10]} 4. e3 {[%emt 0:00:08]} e6 {[%emt 0:00:14]} 5. b3 {[%emt 0:00:14]} Bd6 {[%emt 0:00:40]} 6. Bd3 {[%emt 0:01:50]} Nbd7 {[%emt 0:04:37]} 7. Bb2 {[%emt 0:00:24]} Qc7 {[%emt 0:10:51]} 8. O-O {[%emt 0:10:47]} b6 {[%emt 0:04:48]} 9. Nc3 {[%emt 0:01:55]} O-O {[%emt 0:03:17]} 10. Rc1 {[%emt 0:01:05]} Qb8 {[%emt 0:05:17]} 11. e4 {[%emt 0:04:20]} dxe4 {[%emt 0:04:22]} 12. Nxe4 {[%emt 0:00:07]} Bf4 {[%emt 0:02:02]} 13. Rc2 {[%emt 0:01:25]} Bb7 {[%emt 0:05:13]} 14. c5 {[%emt 0:09:28]} Nd5 {[%emt 0:03:05]} 15. a3 {[%emt 0:02:11]} h6 {[%emt 0:19:03]} 16. Qe2 {[%emt 0:12:46]} Bc7 {[%emt 0:03:06]} 17. g3 {[%emt 0:00:57]} Re8 {[%emt 0:04:46]} 18. Rfc1 {[%emt 0:04:56]} f5 {[%emt 0:04:15]} 19. Ned2 {[%emt 0:02:10]} bxc5 {[%emt 0:04:34]} 20. dxc5 {[%emt 0:00:36]} a5 {[%emt 0:02:50]} 21. Nf1 {[%emt 0:07:24]} f4 {[%emt 0:01:47]} 22. Re1 {[%emt 0:12:28]} Qa7 {[%emt 0:07:36]} 23. Qe4 {[%emt 0:10:31]} N7f6 {[%emt 0:01:11]} 24. Bxf6 {[%emt 0:02:39]} Nxf6 {[%emt 0:00:09]} 25. Qg6 {[%emt 0:00:12]} Ba6 {[%emt 0:02:12]} 26. Bxa6 {[%emt 0:01:49]} Qxa6 {[%emt 0:00:04]} 27. Rce2 {[%emt 0:00:08]} Qc8 {[%emt 0:02:15]} 28. Nd4 {[%emt 0:00:53]} e5 {[%emt 0:01:19]} 29. Nf5 {[%emt 0:01:27]} Qd7 {[%emt 0:00:28]} 30. Rd2 {[%emt 0:03:46]} Nd5 {[%emt 0:00:27]} 31. Nxh6+ {[%emt 0:00:40]} Kh8 {[%emt 0:01:00]} 32. Nf7+ {[%emt 0:00:22]} Kg8 {[%emt 0:00:08]} 33. Ng5 {[%emt 0:00:07]} f3 {[%emt 0:03:20]} 34. Re4 {[%emt 0:00:46]} 1-0

[Event "GER-chT States Women 2022"]
[Site "Braunfels"]
[Date "2022.06.16"]
[Round "1.5"]
[White "Malachowski, Margrit"]
[Black "Kuckling, Hannah"]
[Result "1/2-1/2"]
[ECO "A05"]
[WhiteElo "2061"]
[BlackElo "2070"]
[Annotator "NA RC"]
[PlyCount "62"]
[EventDate "2022.06.15"]
[EventType "swiss"]
[EventCountry "GER"]
[SourceTitle "playchess.com"]
[Source "ChessBase"]
[SourceQuality "1"]
[TimeControl "40/5400+30:1800+30"]

1. Nf3 {[%emt 0:00:08]} Nf6 {[%emt 0:01:11]} 2. g3 {[%emt 0:01:09]} g6 {[%emt 0:00:02]} 3. Bg2 {[%emt 0:00:42]} Bg7 {[%emt 0:00:13]} 4. c4 {[%emt 0:02:55]} d6 5. O-O {[%emt 0:00:26]} e5 {[%emt 0:00:49]} 6. d3 {[%emt 0:00:51]} O-O {[%emt 0:00:07]} 7. Nc3 {[%emt 0:01:31]} Nc6 {[%emt 0:00:56]} 8. Bg5 {[%emt 0:15:56]} h6 {[%emt 0:00:45]} 9. Bxf6 {[%emt 0:01:15]} Bxf6 {[%emt 0:00:37]} 10. Rb1 {[%emt 0:03:28]} Be6 {[%emt 0:05:46]} 11. b4 {[%emt 0:05:12]} Qd7 {[%emt 0:04:20]} 12. e3 {[%emt 0:03:19]} Bg7 {[%emt 0:02:42]} 13. Qc2 {[%emt 0:01:04]} f5 {[%emt 0:02:09]} 14. Nd5 {[%emt 0:06:58]} g5 {[%emt 0:06:22]} 15. b5 {[%emt 0:01:31]} Nd8 {[%emt 0:00:28]} 16. Nd2 {[%emt 0:01:04]} c6 {[%emt 0:03:20]} 17. bxc6 {[%emt 0:02:12]} bxc6 {[%emt 0:00:06]} 18. Nc3 {[%emt 0:00:53]} f4 {[%emt 0:01:26]} 19. Ne2 {[%emt 0:06:06]} Qf7 {[%emt 0:19:21]} 20. exf4 {[%emt 0:03:56]} gxf4 {[%emt 0:00:21]} 21. f3 {[%emt 0:06:28]} fxg3 {[%emt 0:05:39]} 22. hxg3 {[%emt 0:01:47]} Qg6 {[%emt 0:00:28]} 23. Rb3 {[%emt 0:15:57]} h5 {[%emt 0:10:07]} 24. Qd1 {[%emt 0:02:57]} Nf7 {[%emt 0:05:08]} 25. Ne4 {[%emt 0:04:46]} Rad8 {[%emt 0:02:35]} 26. Ra3 {[%emt 0:00:57]} Rd7 {[%emt 0:01:14]} 27. Qe1 {[%emt 0:00:37]} Nh6 {[%emt 0:03:49]} 28. Ra6 {[%emt 0:00:36]} Rc7 {[%emt 0:08:23]} 29. Qa5 {[%emt 0:00:20]} Rff7 {[%emt 0:00:18]} 30. Nxd6 {[%emt 0:00:53]} Rfd7 {[%emt 0:01:30]} 31. Ne4 {[%emt 0:01:42]} Re7 {[%emt 0:00:16]} 1/2-1/2

[Event "GER-chT States Women 2022"]
[Site "Braunfels"]
[Date "2022.06.16"]
[Round "1.6"]
[White "Hess, Olena"]
[Black "Landenberger, Anja Kathrin"]
[Result "1-0"]
[ECO "D02"]
[WhiteElo "2055"]
[BlackElo "1767"]
[Annotator "NA RC"]
[PlyCount "81"]
[EventDate "2022.06.15"]
[EventType "swiss"]
[EventCountry "GER"]
[SourceTitle "playchess.com"]
[Source "ChessBase"]
[SourceQuality "1"]
[TimeControl "40/5400+30:1800+30"]

1. Nf3 {[%emt 0:00:03]} d5 {[%emt 0:00:55]} 2. d4 {[%emt 0:00:13]} Nf6 {[%emt 0:00:52]} 3. c4 {[%emt 0:00:20]} c6 {[%emt 0:01:19]} 4. g3 {[%emt 0:00:23]} Bf5 {[%emt 0:04:17]} 5. Nc3 {[%emt 0:00:23]} e6 {[%emt 0:00:54]} 6. Nh4 {[%emt 0:00:25]} Bg6 {[%emt 0:00:11]} 7. Nxg6 {[%emt 0:00:38]} hxg6 {[%emt 0:00:09]} 8. Qd3 {[%emt 0:00:49]} Bd6 {[%emt 0:07:40]} 9. Bg2 {[%emt 0:00:33]} Nbd7 {[%emt 0:02:42]} 10. O-O {[%emt 0:01:45]} Ng4 {[%emt 0:16:50]} 11. h3 {[%emt 0:03:01]} Nh6 {[%emt 0:09:33]} 12. e4 {[%emt 0:01:37]} dxe4 {[%emt 0:08:48]} 13. Nxe4 {[%emt 0:00:11]} Bc7 {[%emt 0:00:23]} 14. Bg5 {[%emt 0:19:10]} Nf6 {[%emt 0:07:56]} 15. d5 {[%emt 0:10:51]} exd5 {[%emt 0:15:44]} 16. cxd5 {[%emt 0:05:22]} Nf5 {[%emt 0:05:01]} 17. Nxf6+ {[%emt 0:03:55]} gxf6 {[%emt 0:00:09]} 18. Qc3 {[%emt 0:15:14]} Be5 {[%emt 0:04:05]} 19. Rfe1 {[%emt 0:17:57]} Ne7 {[%emt 0:00:25]} 20. Rxe5 {[%emt 0:01:06]} fxe5 {[%emt 0:01:05]} 21. Qxe5 {[%emt 0:00:20]} Rh5 {[%emt 0:01:18]} 22. Re1 {[%emt 0:03:12]} cxd5 {[%emt 0:08:56]} 23. Qxe7+ {[%emt 0:01:53]} Qxe7 {[%emt 0:00:01]} 24. Bxe7 {[%emt 0:00:09]} Kd7 {[%emt 0:00:17]} 25. g4 {[%emt 0:01:13]} Rh7 {[%emt 0:00:25]} 26. Bf6 {[%emt 0:03:23]} Re8 {[%emt 0:01:11]} 27. Rxe8 {[%emt 0:01:46]} Kxe8 {[%emt 0:00:02]} 28. Kh2 {[%emt 0:00:27]} d4 {[%emt 0:01:55]} 29. Bxd4 {[%emt 0:00:28]} f5 {[%emt 0:00:04]} 30. gxf5 {[%emt 0:00:28]} gxf5 {[%emt 0:00:41]} 31. Bxa7 {[%emt 0:02:14]} Rd7 {[%emt 0:00:30]} 32. Be3 {[%emt 0:00:13]} Rc7 {[%emt 0:00:31]} 33. Kg3 {[%emt 0:01:27]} Rc2 {[%emt 0:00:09]} 34. Bd4 {[%emt 0:00:58]} Rd2 {[%emt 0:01:31]} 35. Bc3 {[%emt 0:00:29]} Rd7 {[%emt 0:00:16]} 36. Kf4 {[%emt 0:00:27]} Rf7 {[%emt 0:00:48]} 37. Bf3 {[%emt 0:01:27]} Rh7 {[%emt 0:00:16]} 38. Kg3 {[%emt 0:00:52]} Kd8 {[%emt 0:00:36]} 39. h4 {[%emt 0:00:07]} Kc7 {[%emt 0:00:24]} 40. h5 {[%emt 0:00:03]} Kd6 {[%emt 0:00:29]} 41. Kf4 1-0

[Event "GER-chT States Women 2022"]
[Site "Braunfels"]
[Date "2022.06.16"]
[Round "1.7"]
[White "Chung, Simone"]
[Black "Moeller, Lisa-Marie"]
[Result "0-1"]
[ECO "A43"]
[WhiteElo "1458"]
[BlackElo "1927"]
[Annotator "TA"]
[PlyCount "113"]
[EventDate "2022.06.15"]
[EventType "swiss"]
[EventCountry "GER"]
[SourceTitle "playchess.com"]
[Source "ChessBase"]
[SourceQuality "1"]
[TimeControl "40/5400+30:1800+30"]

{[%evp 11,113,-21,-27,-18,-16,-39,-8,-4,0,-20,-10,-14,-8,-8,4,-23,-10,-31,-19,-21,-16,-12,0,0,22,15,60,0,12,-23,-11,-38,-43,-94,-99,-108,-106,-107,-78,-112,-119,-116,-115,-487,-235,-418,-417,-409,-405,-396,-37,-61,-30,-384,-401,-466,-463,-450,-439,-536,-533,-622,-537,-521,-506,-649,-527,-535,-524,-991,-979,-941,-643,-929,-894,-801,-624,-761,-718,-1151,-1016,-5543,-1606,-29971,-4622,-29969,-29970,-29966,-29961,-29979,-29980,-29977,-29978,-29983,-29984,-29984,-29985,-29985,-29986,-29986,-29986,-29986,-29987,-29987]} 1. d4 {[%emt 0:00:05]} c5 {[%emt 0:00:06]} 2. Nf3 {[%emt 0:01:11]} cxd4 {[%emt 0:00:40]} 3. Nxd4 {[%emt 0:02:19]} d5 {[%emt 0:00:34]} 4. e3 {[%emt 0:04:41]} Nf6 {[%emt 0:05:42]} 5. c4 {[%emt 0:04:53]} e5 {[%emt 0:05:42]} 6. Nf3 {[%emt 0:05:59]} Nc6 {[%emt 0:03:12]} 7. cxd5 {[%emt 0:04:00] D04: Colle System.} Nxd5 {[%emt 0:07:00]} 8. Bc4 {[%emt 0:04:55]} Bb4+ {[%emt 0:05:14]} (8... Be6 $5 {[%cal Rd5e3]} 9. Nbd2 Rc8 $11) 9. Bd2 {[%emt 0:04:17] The position is equal.} O-O {[%emt 0:07:51]} 10. a3 {[%emt 0:12:34]} Bxd2+ {[%emt 0:01:29]} 11. Nbxd2 {[%emt 0:00:21]} Nb6 {[%emt 0:01:11] [#]} 12. Bb5 $146 {[%emt 0:04:15]} ({Predecessor:} 12. Be2 Qe7 13. O-O Rd8 14. Qc2 Be6 15. b4 Rac8 16. Qb1 f6 17. Rc1 Qf7 18. Bf1 {1-0 (30) Sebestyen,B (2171)-Simon,Z (2069) Fuzesabony 2002}) 12... Qd5 {[%emt 0:06:02]} 13. Bxc6 {[%emt 0:05:30]} (13. Qb3 {looks sharper.} Rd8 14. Rc1 f6 15. Qxd5+ Rxd5 16. Be2) 13... bxc6 {[%emt 0:04:42]} 14. e4 {[%emt 0:05:04]} Qe6 {[%emt 0:07:03]} 15. O-O {[%emt 0:03:53]} Ba6 {[%emt 0:02:08]} 16. Re1 {[%emt 0:03:31]} Rab8 {[%emt 0:03:54]} 17. Qc2 {[%emt 0:04:12]} Rfd8 {[%emt 0:04:05]} 18. Rac1 {[%emt 0:04:34]} Rbc8 {[%emt 0:02:58]} 19. Qc5 {[%emt 0:06:16]} (19. Nb3 $1 $14) 19... Bb5 {[%emt 0:06:35]} 20. Qc3 {[%emt 0:08:37]} Na4 {[%emt 0:04:21][%cal Bb6a4,Ba4b2,Bb2d3,Bd3f4][%mdl 32]} 21. Qb4 {[%emt 0:04:13]} a5 {[%emt 0:03:50]} 22. Qxa5 {[%emt 0:01:21]} (22. Qb3 $15) 22... Nxb2 $17 {[%emt 0:00:31] [#] And now ...Nd3 would win.} 23. Rb1 {[%emt 0:01:13]} Nd3 {[%emt 0:00:26] Hoping for ...Ra8.} 24. Re3 {[%emt 0:00:40]} Nf4 {[%emt 0:05:43]} 25. a4 {[%emt 0:00:52]} Ra8 {[%emt 0:00:49] 0x0.001e6b28f8bedp-1022s more active pieces.} 26. Qc7 {[%emt 0:01:10]} Bxa4 $40 {[%emt 0:02:53][%mdl 128] Black is out for blood.} 27. Ng5 $2 {[%emt 0:00:51][%mdl 8192]} (27. g3 $17 Nh3+ 28. Kg2) 27... Qg6 {[%emt 0:02:12]} ({Avoid the trap} 27... Qa2 $2 28. h4 $19) (27... Qg4 $142 {[%csl Gf4][%cal Rg4g2]} 28. g3 Qxg5) 28. Ndf3 $2 {[%emt 0:00:59]} (28. Qxe5 {is the only way for White.} Bc2 29. Qxf4 Bxb1 30. Re1) 28... f6 $19 {[%emt 0:01:21] aiming for ...h6.} 29. g3 {[%emt 0:00:59]} fxg5 {[%emt 0:02:24]} 30. Nxe5 {[%emt 0:00:13] [#]} Qe6 {[%emt 0:02:47]} 31. gxf4 $15 {[%emt 0:00:26]} Rdc8 {[%emt 0:00:24][%cal Bd8c8,Bc8c7,Bc7a7][%mdl 32]} 32. f5 $2 {[%emt 0:00:43][%mdl 8192] Black converts the advantage convincingly.} (32. Qd7 $1 $11 {and White stays safe.} Qxd7 33. Nxd7) 32... Qf6 $19 {[%emt 0:00:47]} ({Stronger than} 32... Rxc7 33. fxe6 Re8 34. Rc3 $11) 33. Ng4 {[%emt 0:00:23]} Rxc7 {[%emt 0:00:09]} 34. Nxf6+ {[%emt 0:00:02]} gxf6 {[%emt 0:00:09]} 35. Ra3 {[%emt 0:00:36]} Rca7 {[%emt 0:00:25]} 36. Rg3 {[%emt 0:00:56]} Kf7 {[%emt 0:01:19]} 37. Rh3 {[%emt 0:00:31]} Kg7 {[%emt 0:00:39]} 38. Rg3 {[%emt 0:00:03]} Bb5 {[%emt 0:00:19]} 39. h4 {[%emt 0:00:33]} Ra3 {[%emt 0:00:56]} 40. Rg2 {[%emt 0:00:57]} Ra1 {[%emt 0:00:44]} 41. Rxa1 {[%emt 0:30:06]} Rxa1+ {[%emt 0:30:08][%mdl 4096] Endgame KRB-KR} 42. Kh2 {[%emt 0:00:07]} Bd3 {[%emt 0:00:00]} 43. f3 {[%emt 0:00:00]} h6 {[%emt 0:00:00][%cal Bh7h6,Bh6g5][%mdl 32] Threatens to win with ...c5.} 44. Rd2 {[%emt 0:00:00]} Ra3 {[%emt 0:00:00]} 45. hxg5 {[%emt 0:00:00]} hxg5 {[%emt 0:00:00] White must now prevent ...c5.} 46. Kg3 {[%emt 0:00:00]} c5 {[%emt 0:00:00][%cal Bc6c5,Bc5c4][%mdl 32] ( -> ...Bxe4)} 47. Rb2 {[%emt 0:00:00]} Ra7 {[%emt 0:00:00]} (47... Bxe4 $142 48. Kh2 Rxf3 49. Ra2 Bxf5 50. Ra7+ Kg6 51. Ra4 Rc3 52. Kg2 g4 53. Kf2 c4 54. Ra7 Rf3+ 55. Ke1 g3 56. Ra8 c3 57. Ke2 Bg4 58. Rg8+ Kf5 59. Rc8 g2 60. Rc5+ Kg6 61. Rxc3 Rxc3+ 62. Kf2 Bh3 63. Kg1 Rg3 64. Kf2 g1=Q+ 65. Ke2 Qh2+ 66. Ke1 Rg1#) 48. Rb3 {[%emt 0:00:00]} c4 {[%emt 0:00:00] Black mates.} 49. Rc3 {[%emt 0:00:00]} Rb7 {[%emt 0:00:00]} 50. Kf2 {[%emt 0:00:00]} Rb3 {[%emt 0:00:00]} 51. Rc1 {[%emt 0:00:00]} c3 {[%emt 0:00:00]} 52. Ke1 {[%emt 0:00:00]} Rb1 {[%emt 0:00:00]} 53. Rxb1 {[%emt 0:00:00]} Bxb1 {[%emt 0:00:00]} 54. Kd1 {[%emt 0:00:00]} Bd3 {[%emt 0:00:00]} 55. Kc1 {[%emt 0:00:00]} Be2 {[%emt 0:00:00]} 56. Kc2 {[%emt 0:00:00]} Bxf3 {[%emt 0:00:00]} 57. Kxc3 {[%emt 0:00:00] Weighted Error Value: White=0.71/Black=0.55} 0-1